[Event "Titled Tuesday Blitz August 3 2021"]
[White "Ibrahimli, Murad"]
[Black "Savitha Shri B"]
[WhiteFideId "13410229"]
[BlackFideId "35061887"]
[WhiteElo "2109"]
[BlackElo "2006"]
[Result "1-0"]
[Round "03"]
[TimeControl "180+1"]
[Date "2021.08.03"]
[WhiteClock "0:00:22"]
[BlackClock "0:00:15"]

1. d4 {[%clk 0:03:00]}  c5 {[%clk 0:02:57]} 2. d5 {[%clk 0:02:59]}  e5 {[%clk 0:02:57]} 3. c4 {[%clk 0:02:56]}  d6 {[%clk 0:02:57]} 4. Nc3 {[%clk 0:02:55]}  g6 {[%clk 0:02:58]} 5. e4 {[%clk 0:02:55]}  Bg7 {[%clk 0:02:58]} 6. Bd3 {[%clk 0:02:49]}  Ne7 {[%clk 0:02:58]} 7. Nge2 {[%clk 0:02:50]}  O-O {[%clk 0:02:58]} 8. f3 {[%clk 0:02:47]}  f5 {[%clk 0:02:58]} 9. Bg5 {[%clk 0:02:44]}  h6 {[%clk 0:02:56]} 10. Bxe7 {[%clk 0:02:23]}  Qxe7 {[%clk 0:02:54]} 11. exf5 {[%clk 0:02:24]}  gxf5 {[%clk 0:02:54]} 12. Qc2 {[%clk 0:02:24]}  Na6 {[%clk 0:02:49]} 13. a3 {[%clk 0:02:23]}  Qg5 {[%clk 0:02:17]} 14. g3 {[%clk 0:01:43]}  Qe3 {[%clk 0:02:09]} 15. Rf1 {[%clk 0:01:39]}  Bd7 {[%clk 0:02:06]} 16. Qd2 {[%clk 0:01:36]}  Qxd2+ {[%clk 0:01:59]} 17. Kxd2 {[%clk 0:01:36]}  h5 {[%clk 0:02:00]} 18. Kc2 {[%clk 0:01:27]}  Nc7 {[%clk 0:01:55]} 19. b4 {[%clk 0:01:16]}  cxb4 {[%clk 0:01:45]} 20. axb4 {[%clk 0:01:17]}  Na6 {[%clk 0:01:46]} 21. Rxa6 {[%clk 0:01:14]}  bxa6 {[%clk 0:01:45]} 22. Ra1 {[%clk 0:01:14]}  e4 {[%clk 0:01:41]} 23. fxe4 {[%clk 0:01:14]}  fxe4 {[%clk 0:01:42]} 24. Bxe4 {[%clk 0:01:13]}  Rf2 {[%clk 0:01:40]} 25. Bd3 {[%clk 0:00:42]}  Bg4 {[%clk 0:01:16]} 26. Rxa6 {[%clk 0:00:38]}  Bxc3 {[%clk 0:01:12]} 27. Kxc3 {[%clk 0:00:38]}  Bxe2 {[%clk 0:01:12]} 28. Be4 {[%clk 0:00:38]}  Rc8 {[%clk 0:01:07]} 29. Rc6 {[%clk 0:00:39]}  Rxc6 {[%clk 0:01:04]} 30. dxc6 {[%clk 0:00:40]}  Bg4 {[%clk 0:01:02]} 31. b5 {[%clk 0:00:37]}  Rxh2 {[%clk 0:01:02]} 32. Kb4 {[%clk 0:00:37]}  Rb2+ {[%clk 0:01:01]} 33. Kc3 {[%clk 0:00:36]}  Ra2 {[%clk 0:00:55]} 34. c5 {[%clk 0:00:35]}  Ra3+ {[%clk 0:00:45]} 35. Kb4 {[%clk 0:00:34]}  Rxg3 {[%clk 0:00:43]} 36. cxd6 {[%clk 0:00:34]}  Kf8 {[%clk 0:00:44]} 37. c7 {[%clk 0:00:28]}  Re3 {[%clk 0:00:40]} 38. Bc6 {[%clk 0:00:27]}  Re7 {[%clk 0:00:14]} 39. d7 {[%clk 0:00:20]}  Rxd7 {[%clk 0:00:14]} 40. c8=Q+ {[%clk 0:00:20]}  Ke7 {[%clk 0:00:12]} 41. Bxd7 {[%clk 0:00:20]}  Bxd7 {[%clk 0:00:13]} 42. Qc5+ {[%clk 0:00:21]}  Kd8 {[%clk 0:00:13]} 43. Qxh5 {[%clk 0:00:22]}  Kc7 {[%clk 0:00:14]} 44. Qc5+ {[%clk 0:00:22]}  Kb7 {[%clk 0:00:15]} 45. Ka5 {[%clk 0:00:22]} 1-0


[Site "https://www.chess.com"]

[Event "Titled Tuesday Blitz August 3 2021"]
[White "Isajevsky, Anton"]
[Black "Urazayev, Arystanbek"]
[WhiteFideId "4142500"]
[BlackFideId "13709810"]
[WhiteElo "2510"]
[BlackElo "2321"]
[Result "0-1"]
[Round "03"]
[TimeControl "180+1"]
[Date "2021.08.03"]
[WhiteClock "0:00:01"]
[BlackClock "0:00:06"]

1. c4 {[%clk 0:03:00]}  e6 {[%clk 0:03:00]} 2. Nf3 {[%clk 0:03:00]}  c5 {[%clk 0:02:56]} 3. Nc3 {[%clk 0:03:00]}  b6 {[%clk 0:02:56]} 4. e3 {[%clk 0:02:56]}  Bb7 {[%clk 0:02:57]} 5. Be2 {[%clk 0:02:56]}  Nf6 {[%clk 0:02:57]} 6. O-O {[%clk 0:02:56]}  Be7 {[%clk 0:02:56]} 7. d4 {[%clk 0:02:49]}  cxd4 {[%clk 0:02:55]} 8. Nxd4 {[%clk 0:02:50]}  O-O {[%clk 0:02:54]} 9. b3 {[%clk 0:02:49]}  d5 {[%clk 0:02:54]} 10. Bb2 {[%clk 0:02:49]}  Nc6 {[%clk 0:02:53]} 11. cxd5 {[%clk 0:02:38]}  Nxd4 {[%clk 0:02:46]} 12. Qxd4 {[%clk 0:02:38]}  Bc5 {[%clk 0:02:47]} 13. Qe5 {[%clk 0:02:29]}  exd5 {[%clk 0:02:38]} 14. Nb5 {[%clk 0:02:23]}  Re8 {[%clk 0:02:19]} 15. Qg3 {[%clk 0:01:59]}  Ba6 {[%clk 0:01:46]} 16. Rfe1 {[%clk 0:01:31]}  Bb4 {[%clk 0:01:32]} 17. Red1 {[%clk 0:01:28]}  Bf8 {[%clk 0:01:28]} 18. Bd3 {[%clk 0:01:09]}  Nh5 {[%clk 0:00:46]} 19. Qf3 {[%clk 0:00:59]}  g6 {[%clk 0:00:36]} 20. Rac1 {[%clk 0:00:48]}  Rc8 {[%clk 0:00:15]} 21. Rxc8 {[%clk 0:00:47]}  Bxc8 {[%clk 0:00:14]} 22. Nxa7 {[%clk 0:00:44]}  Bb7 {[%clk 0:00:14]} 23. Nb5 {[%clk 0:00:41]}  Bg7 {[%clk 0:00:14]} 24. Bxg7 {[%clk 0:00:29]}  Kxg7 {[%clk 0:00:14]} 25. Nd4 {[%clk 0:00:29]}  Nf6 {[%clk 0:00:13]} 26. Rc1 {[%clk 0:00:28]}  Qe7 {[%clk 0:00:10]} 27. Qf4 {[%clk 0:00:24]}  Qa3 {[%clk 0:00:09]} 28. Rc2 {[%clk 0:00:24]}  Ba6 {[%clk 0:00:08]} 29. Bxa6 {[%clk 0:00:22]}  Qxa6 {[%clk 0:00:09]} 30. Qf3 {[%clk 0:00:07]}  Ne4 {[%clk 0:00:06]} 31. Qe2 {[%clk 0:00:03]}  Qa5 {[%clk 0:00:06]} 32. a4 {[%clk 0:00:02]}  Qb4 {[%clk 0:00:06]} 33. Qd3 {[%clk 0:00:01]}  Qa3 {[%clk 0:00:06]} 34. g3 {[%clk 0:00:01]}  Nc5 {[%clk 0:00:06]} 0-1


[Site "https://www.chess.com"]

[Event "Titled Tuesday Blitz August 3 2021"]
[White "Jacobson, Brandon"]
[Black "Nitin, S."]
[WhiteFideId "30901561"]
[BlackFideId "5018277"]
[WhiteElo "2362"]
[BlackElo "2431"]
[Result "1-0"]
[Round "03"]
[TimeControl "180+1"]
[Date "2021.08.03"]
[WhiteClock "0:00:47"]
[BlackClock "0:00:46"]

1. d4 {[%clk 0:03:00]}  Nf6 {[%clk 0:02:56]} 2. c4 {[%clk 0:03:00]}  g6 {[%clk 0:02:56]} 3. Nc3 {[%clk 0:03:00]}  Bg7 {[%clk 0:02:56]} 4. e4 {[%clk 0:03:01]}  d6 {[%clk 0:02:57]} 5. Nf3 {[%clk 0:03:01]}  O-O {[%clk 0:02:57]} 6. Be2 {[%clk 0:03:02]}  e5 {[%clk 0:02:57]} 7. O-O {[%clk 0:03:03]}  Nc6 {[%clk 0:02:58]} 8. dxe5 {[%clk 0:03:03]}  Nxe5 {[%clk 0:02:57]} 9. Bf4 {[%clk 0:03:03]}  Nfd7 {[%clk 0:02:51]} 10. Qd2 {[%clk 0:02:56]}  Re8 {[%clk 0:02:49]} 11. Rad1 {[%clk 0:02:53]}  Nxf3+ {[%clk 0:02:43]} 12. Bxf3 {[%clk 0:02:54]}  Ne5 {[%clk 0:02:42]} 13. Be2 {[%clk 0:02:54]}  Be6 {[%clk 0:02:40]} 14. b3 {[%clk 0:02:50]}  a5 {[%clk 0:02:11]} 15. Bg5 {[%clk 0:02:48]}  Qc8 {[%clk 0:02:08]} 16. Nd5 {[%clk 0:02:43]}  Bxd5 {[%clk 0:02:06]} 17. cxd5 {[%clk 0:02:43]}  Nd7 {[%clk 0:02:05]} 18. f3 {[%clk 0:02:41]}  Nc5 {[%clk 0:01:58]} 19. Bb5 {[%clk 0:02:31]}  c6 {[%clk 0:01:55]} 20. dxc6 {[%clk 0:02:30]}  bxc6 {[%clk 0:01:56]} 21. Bc4 {[%clk 0:02:30]}  Be5 {[%clk 0:01:50]} 22. Kh1 {[%clk 0:01:46]}  Qc7 {[%clk 0:01:43]} 23. Qf2 {[%clk 0:01:45]}  Ne6 {[%clk 0:01:41]} 24. Be3 {[%clk 0:01:44]}  a4 {[%clk 0:01:28]} 25. f4 {[%clk 0:01:41]}  Bg7 {[%clk 0:01:22]} 26. f5 {[%clk 0:01:42]}  Nd8 {[%clk 0:01:20]} 27. fxg6 {[%clk 0:01:34]}  hxg6 {[%clk 0:01:20]} 28. Bb6 {[%clk 0:01:34]}  Qe7 {[%clk 0:01:20]} 29. Bxd8 {[%clk 0:01:34]}  Rexd8 {[%clk 0:01:20]} 30. Bxf7+ {[%clk 0:01:34]}  Kh8 {[%clk 0:01:18]} 31. Qg3 {[%clk 0:01:15]}  Qe5 {[%clk 0:01:13]} 32. Qxg6 {[%clk 0:01:02]}  d5 {[%clk 0:01:07]} 33. Rf5 {[%clk 0:01:01]}  Rd6 {[%clk 0:01:07]} 34. Rh5+ {[%clk 0:01:00]}  Qxh5 {[%clk 0:01:06]} 35. Qxh5+ {[%clk 0:01:01]}  Rh6 {[%clk 0:01:06]} 36. Qg5 {[%clk 0:00:58]}  Rf8 {[%clk 0:01:04]} 37. Bg6 {[%clk 0:00:49]}  axb3 {[%clk 0:01:03]} 38. axb3 {[%clk 0:00:49]}  d4 {[%clk 0:01:03]} 39. e5 {[%clk 0:00:48]}  c5 {[%clk 0:00:54]} 40. e6 {[%clk 0:00:48]}  Rf6 {[%clk 0:00:45]} 41. e7 {[%clk 0:00:47]}  Rfxg6 {[%clk 0:00:45]} 42. e8=Q+ {[%clk 0:00:47]}  Kh7 {[%clk 0:00:46]} 43. Qe4 {[%clk 0:00:47]} 1-0


[Site "https://www.chess.com"]

[Event "Titled Tuesday Blitz August 3 2021"]
[White "Kalashian, David"]
[Black "Samadov, Read"]
[WhiteFideId "13302418"]
[BlackFideId "13417444"]
[WhiteElo "2490"]
[BlackElo "2084"]
[Result "0-1"]
[Round "03"]
[TimeControl "180+1"]
[Date "2021.08.03"]
[WhiteClock "0:00:05"]
[BlackClock "0:01:23"]

1. e4 {[%clk 0:02:58]}  c5 {[%clk 0:02:59]} 2. Nc3 {[%clk 0:02:57]}  Nc6 {[%clk 0:02:58]} 3. Nf3 {[%clk 0:02:58]}  e5 {[%clk 0:02:56]} 4. Bc4 {[%clk 0:02:54]}  d6 {[%clk 0:02:57]} 5. d3 {[%clk 0:02:54]}  Be7 {[%clk 0:02:55]} 6. Nd2 {[%clk 0:02:53]}  Bg5 {[%clk 0:02:54]} 7. Nf1 {[%clk 0:02:51]}  Bxc1 {[%clk 0:02:54]} 8. Rxc1 {[%clk 0:02:51]}  Nge7 {[%clk 0:02:55]} 9. Ne3 {[%clk 0:02:50]}  O-O {[%clk 0:02:55]} 10. O-O {[%clk 0:02:50]}  Be6 {[%clk 0:02:56]} 11. Ncd5 {[%clk 0:02:50]}  Ng6 {[%clk 0:02:54]} 12. c3 {[%clk 0:02:49]}  a6 {[%clk 0:02:53]} 13. a3 {[%clk 0:02:46]}  b5 {[%clk 0:02:52]} 14. Bb3 {[%clk 0:02:46]}  Nce7 {[%clk 0:02:50]} 15. Nxe7+ {[%clk 0:02:40]}  Qxe7 {[%clk 0:02:50]} 16. Bd5 {[%clk 0:02:29]}  Rab8 {[%clk 0:02:48]} 17. g3 {[%clk 0:02:24]}  Kh8 {[%clk 0:02:36]} 18. Qh5 {[%clk 0:02:16]}  f6 {[%clk 0:02:30]} 19. f4 {[%clk 0:02:13]}  Bxd5 {[%clk 0:02:17]} 20. Nxd5 {[%clk 0:02:10]}  Qf7 {[%clk 0:02:17]} 21. f5 {[%clk 0:02:04]}  Ne7 {[%clk 0:02:16]} 22. Qxf7 {[%clk 0:02:02]}  Rxf7 {[%clk 0:02:17]} 23. Nxe7 {[%clk 0:01:31]}  Rxe7 {[%clk 0:02:18]} 24. Kf2 {[%clk 0:01:31]}  Kg8 {[%clk 0:02:10]} 25. Ke3 {[%clk 0:01:31]}  Kf7 {[%clk 0:02:10]} 26. g4 {[%clk 0:01:32]}  Rd7 {[%clk 0:02:04]} 27. h4 {[%clk 0:01:22]}  d5 {[%clk 0:02:02]} 28. g5 {[%clk 0:01:20]}  dxe4 {[%clk 0:01:59]} 29. Kxe4 {[%clk 0:00:45]}  Rbd8 {[%clk 0:01:59]} 30. Rf3 {[%clk 0:00:44]}  c4 {[%clk 0:01:58]} 31. Rd1 {[%clk 0:00:44]}  a5 {[%clk 0:01:39]} 32. Rg3 {[%clk 0:00:37]}  a4 {[%clk 0:01:31]} 33. Rf3 {[%clk 0:00:18]}  Rxd3 {[%clk 0:01:27]} 34. Rfxd3 {[%clk 0:00:18]}  cxd3 {[%clk 0:01:27]} 35. Rxd3 {[%clk 0:00:17]}  Rxd3 {[%clk 0:01:26]} 36. Kxd3 {[%clk 0:00:18]}  fxg5 {[%clk 0:01:27]} 37. hxg5 {[%clk 0:00:19]}  h6 {[%clk 0:01:25]} 38. gxh6 {[%clk 0:00:03]}  gxh6 {[%clk 0:01:26]} 39. c4 {[%clk 0:00:03]}  bxc4+ {[%clk 0:01:25]} 40. Kxc4 {[%clk 0:00:04]}  h5 {[%clk 0:01:25]} 41. b4 {[%clk 0:00:03]}  axb3 {[%clk 0:01:22]} 42. Kxb3 {[%clk 0:00:04]}  h4 {[%clk 0:01:22]} 43. a4 {[%clk 0:00:04]}  h3 {[%clk 0:01:23]} 44. a5 {[%clk 0:00:05]}  h2 {[%clk 0:01:23]} 0-1


[Site "https://www.chess.com"]

[Event "Titled Tuesday Blitz August 3 2021"]
[White "Karacsonyi, Gellert"]
[Black "Prydun, Andriy"]
[WhiteFideId "764620"]
[BlackFideId "14145898"]
[WhiteElo "2192"]
[BlackElo "2024"]
[Result "1-0"]
[Round "03"]
[TimeControl "180+1"]
[Date "2021.08.03"]
[WhiteClock "0:00:17"]
[BlackClock "0:00:06"]

1. e4 {[%clk 0:03:00]}  c6 {[%clk 0:03:00]} 2. d4 {[%clk 0:03:00]}  d5 {[%clk 0:03:01]} 3. exd5 {[%clk 0:03:01]}  cxd5 {[%clk 0:02:57]} 4. Bd3 {[%clk 0:03:01]}  Nc6 {[%clk 0:02:36]} 5. c3 {[%clk 0:03:02]}  g6 {[%clk 0:02:33]} 6. Nf3 {[%clk 0:03:01]}  Bf5 {[%clk 0:02:32]} 7. Bf4 {[%clk 0:02:58]}  Nf6 {[%clk 0:02:26]} 8. h3 {[%clk 0:02:58]}  Bxd3 {[%clk 0:02:18]} 9. Qxd3 {[%clk 0:02:59]}  Bg7 {[%clk 0:02:18]} 10. O-O {[%clk 0:02:59]}  O-O {[%clk 0:02:18]} 11. Nbd2 {[%clk 0:03:00]}  Ne8 {[%clk 0:02:15]} 12. Rae1 {[%clk 0:02:58]}  Nd6 {[%clk 0:02:14]} 13. Ne5 {[%clk 0:02:57]}  Rc8 {[%clk 0:02:12]} 14. h4 {[%clk 0:02:44]}  a6 {[%clk 0:01:35]} 15. Ndf3 {[%clk 0:02:43]}  b5 {[%clk 0:01:34]} 16. Nxc6 {[%clk 0:02:42]}  Rxc6 {[%clk 0:01:33]} 17. Be5 {[%clk 0:02:41]}  Ne4 {[%clk 0:01:29]} 18. Bxg7 {[%clk 0:02:38]}  Kxg7 {[%clk 0:01:28]} 19. Ne5 {[%clk 0:02:38]}  Rc7 {[%clk 0:01:01]} 20. f3 {[%clk 0:02:37]}  Nd6 {[%clk 0:00:59]} 21. Rf2 {[%clk 0:02:34]}  f6 {[%clk 0:00:56]} 22. Ng4 {[%clk 0:02:33]}  Nf5 {[%clk 0:00:54]} 23. h5 {[%clk 0:02:31]}  Ng3 {[%clk 0:00:53]} 24. h6+ {[%clk 0:02:13]}  Kf7 {[%clk 0:00:52]} 25. Qe3 {[%clk 0:01:55]}  Qd7 {[%clk 0:00:49]} 26. Qf4 {[%clk 0:01:54]}  Nf5 {[%clk 0:00:44]} 27. Ne3 {[%clk 0:01:53]}  Qd6 {[%clk 0:00:42]} 28. Qxd6 {[%clk 0:01:48]}  Nxd6 {[%clk 0:00:41]} 29. Nxd5 {[%clk 0:01:48]}  Rb7 {[%clk 0:00:42]} 30. g4 {[%clk 0:01:46]}  Rd8 {[%clk 0:00:32]} 31. Rfe2 {[%clk 0:01:45]}  Nc8 {[%clk 0:00:32]} 32. Nb4 {[%clk 0:01:42]}  a5 {[%clk 0:00:31]} 33. Nc6 {[%clk 0:01:41]}  Rd6 {[%clk 0:00:28]} 34. Nxa5 {[%clk 0:01:40]}  Ra7 {[%clk 0:00:28]} 35. b4 {[%clk 0:01:39]}  Rc7 {[%clk 0:00:27]} 36. Nb3 {[%clk 0:01:39]}  Rxc3 {[%clk 0:00:26]} 37. Kg2 {[%clk 0:01:35]}  Rc4 {[%clk 0:00:24]} 38. Re4 {[%clk 0:01:25]}  Rxb4 {[%clk 0:00:22]} 39. Rc1 {[%clk 0:01:25]}  Rc4 {[%clk 0:00:22]} 40. Ree1 {[%clk 0:01:14]}  Rdc6 {[%clk 0:00:20]} 41. Kf2 {[%clk 0:01:04]}  Nb6 {[%clk 0:00:18]} 42. Rxc4 {[%clk 0:01:00]}  bxc4 {[%clk 0:00:17]} 43. Na5 {[%clk 0:01:00]}  Rc7 {[%clk 0:00:17]} 44. Rc1 {[%clk 0:01:00]}  c3 {[%clk 0:00:15]} 45. Ke3 {[%clk 0:00:58]}  Ra7 {[%clk 0:00:15]} 46. Nc6 {[%clk 0:00:34]}  Rxa2 {[%clk 0:00:14]} 47. Nb4 {[%clk 0:00:34]}  Rb2 {[%clk 0:00:14]} 48. Nd3 {[%clk 0:00:33]}  Ra2 {[%clk 0:00:11]} 49. f4 {[%clk 0:00:31]}  Nc4+ {[%clk 0:00:08]} 50. Kf3 {[%clk 0:00:30]}  Nd2+ {[%clk 0:00:08]} 51. Ke3 {[%clk 0:00:29]}  Nc4+ {[%clk 0:00:08]} 52. Kf3 {[%clk 0:00:29]}  Nd2+ {[%clk 0:00:09]} 53. Kg3 {[%clk 0:00:29]}  Nc4 {[%clk 0:00:10]} 54. Rxc3 {[%clk 0:00:29]}  Ne3 {[%clk 0:00:10]} 55. Kf3 {[%clk 0:00:23]}  Nf1 {[%clk 0:00:10]} 56. Rc8 {[%clk 0:00:23]}  Nh2+ {[%clk 0:00:10]} 57. Ke4 {[%clk 0:00:22]}  Nf1 {[%clk 0:00:10]} 58. Rh8 {[%clk 0:00:21]}  Re2+ {[%clk 0:00:10]} 59. Kd5 {[%clk 0:00:21]}  Ne3+ {[%clk 0:00:09]} 60. Kc5 {[%clk 0:00:20]}  Nxg4 {[%clk 0:00:09]} 61. Rxh7+ {[%clk 0:00:20]}  Kg8 {[%clk 0:00:10]} 62. Rg7+ {[%clk 0:00:19]}  Kh8 {[%clk 0:00:11]} 63. Rxg6 {[%clk 0:00:20]}  f5 {[%clk 0:00:08]} 64. Ne5 {[%clk 0:00:18]}  Kh7 {[%clk 0:00:07]} 65. Rg7+ {[%clk 0:00:17]}  Kxh6 {[%clk 0:00:07]} 66. Rxe7 {[%clk 0:00:18]}  Nf2 {[%clk 0:00:06]} 67. Nf7+ {[%clk 0:00:17]} 1-0


[Site "https://www.chess.com"]

[Event "Titled Tuesday Blitz August 3 2021"]
[White "Karavade, Eesha"]
[Black "Peralta, Eduardo"]
[WhiteFideId "5012600"]
[BlackFideId "3700062"]
[WhiteElo "2258"]
[BlackElo "2205"]
[Result "1-0"]
[Round "03"]
[TimeControl "180+1"]
[Date "2021.08.03"]
[WhiteClock "0:01:06"]
[BlackClock "0:00:06"]

1. Nf3 {[%clk 0:02:44]}  g6 {[%clk 0:02:56]} 2. d4 {[%clk 0:02:43]}  Bg7 {[%clk 0:02:55]} 3. b3 {[%clk 0:02:43]}  f5 {[%clk 0:02:54]} 4. Bb2 {[%clk 0:02:43]}  Nf6 {[%clk 0:02:55]} 5. g3 {[%clk 0:02:43]}  O-O {[%clk 0:02:55]} 6. Bg2 {[%clk 0:02:43]}  d6 {[%clk 0:02:54]} 7. O-O {[%clk 0:02:42]}  c6 {[%clk 0:02:51]} 8. c4 {[%clk 0:02:42]}  Nbd7 {[%clk 0:02:46]} 9. Nc3 {[%clk 0:02:39]}  Ne4 {[%clk 0:02:46]} 10. Nxe4 {[%clk 0:02:34]}  fxe4 {[%clk 0:02:47]} 11. Ng5 {[%clk 0:02:34]}  Nf6 {[%clk 0:02:37]} 12. Nxe4 {[%clk 0:02:34]}  Bd7 {[%clk 0:02:22]} 13. Qd2 {[%clk 0:02:24]}  Qc8 {[%clk 0:02:14]} 14. Nxf6+ {[%clk 0:02:21]}  Bxf6 {[%clk 0:02:15]} 15. e4 {[%clk 0:02:20]}  Bh3 {[%clk 0:02:15]} 16. f4 {[%clk 0:02:16]}  Bxg2 {[%clk 0:02:07]} 17. Kxg2 {[%clk 0:02:16]}  Bg7 {[%clk 0:02:04]} 18. d5 {[%clk 0:02:14]}  h5 {[%clk 0:01:56]} 19. Bxg7 {[%clk 0:02:12]}  Kxg7 {[%clk 0:01:57]} 20. Qd4+ {[%clk 0:02:10]}  Kg8 {[%clk 0:01:53]} 21. h4 {[%clk 0:02:01]}  Qg4 {[%clk 0:01:48]} 22. Rae1 {[%clk 0:01:58]}  c5 {[%clk 0:01:44]} 23. Qd1 {[%clk 0:01:52]}  Qd7 {[%clk 0:01:40]} 24. e5 {[%clk 0:01:50]}  Qf5 {[%clk 0:01:39]} 25. Qb1 {[%clk 0:01:45]}  Qxb1 {[%clk 0:01:33]} 26. Rxb1 {[%clk 0:01:44]}  dxe5 {[%clk 0:01:30]} 27. fxe5 {[%clk 0:01:44]}  Rxf1 {[%clk 0:01:28]} 28. Rxf1 {[%clk 0:01:43]}  Rb8 {[%clk 0:01:24]} 29. a4 {[%clk 0:01:36]}  a6 {[%clk 0:01:22]} 30. d6 {[%clk 0:01:29]}  exd6 {[%clk 0:01:17]} 31. exd6 {[%clk 0:01:29]}  Rd8 {[%clk 0:01:17]} 32. Rd1 {[%clk 0:01:25]}  Kf7 {[%clk 0:01:08]} 33. Kf3 {[%clk 0:01:15]}  Rd7 {[%clk 0:00:56]} 34. Kf4 {[%clk 0:01:14]}  Kf6 {[%clk 0:00:56]} 35. a5 {[%clk 0:01:13]}  g5+ {[%clk 0:00:27]} 36. hxg5+ {[%clk 0:01:11]}  Ke6 {[%clk 0:00:28]} 37. g6 {[%clk 0:01:10]}  Kf6 {[%clk 0:00:28]} 38. g7 {[%clk 0:01:10]}  Kxg7 {[%clk 0:00:20]} 39. Ke5 {[%clk 0:01:10]}  Kf7 {[%clk 0:00:17]} 40. Rf1+ {[%clk 0:01:09]}  Ke8 {[%clk 0:00:17]} 41. Ke6 {[%clk 0:01:09]}  h4 {[%clk 0:00:08]} 42. gxh4 {[%clk 0:01:08]}  b6 {[%clk 0:00:07]} 43. Rf8+ {[%clk 0:01:06]}  Kxf8 {[%clk 0:00:06]} 1-0


[Site "https://www.chess.com"]

[Event "Titled Tuesday Blitz August 3 2021"]
[White "Khodzhamkuliev, Bahadur"]
[Black "Jobava, Baadur"]
[WhiteFideId "24135046"]
[BlackFideId "13601520"]
[WhiteElo "2130"]
[BlackElo "2748"]
[Result "0-1"]
[Round "03"]
[TimeControl "180+1"]
[Date "2021.08.03"]
[WhiteClock "0:00:19"]
[BlackClock "0:01:43"]

1. Nf3 {[%clk 0:03:00]}  d5 {[%clk 0:03:00]} 2. c4 {[%clk 0:02:58]}  Nf6 {[%clk 0:03:01]} 3. cxd5 {[%clk 0:02:57]}  c6 {[%clk 0:03:02]} 4. d4 {[%clk 0:02:56]}  cxd5 {[%clk 0:03:00]} 5. Nc3 {[%clk 0:02:57]}  Nc6 {[%clk 0:03:01]} 6. Bf4 {[%clk 0:02:56]}  e6 {[%clk 0:03:00]} 7. e3 {[%clk 0:02:54]}  Be7 {[%clk 0:03:01]} 8. Bb5 {[%clk 0:02:53]}  Bd7 {[%clk 0:03:02]} 9. O-O {[%clk 0:02:52]}  O-O {[%clk 0:03:01]} 10. Rc1 {[%clk 0:02:50]}  Qa5 {[%clk 0:03:00]} 11. Bd3 {[%clk 0:02:43]}  Rfc8 {[%clk 0:03:00]} 12. Bb1 {[%clk 0:02:42]}  Qd8 {[%clk 0:02:59]} 13. a3 {[%clk 0:02:40]}  h6 {[%clk 0:02:58]} 14. Ne5 {[%clk 0:02:39]}  Be8 {[%clk 0:02:56]} 15. Nxc6 {[%clk 0:02:36]}  bxc6 {[%clk 0:02:53]} 16. Na4 {[%clk 0:02:18]}  Nd7 {[%clk 0:02:49]} 17. Qd3 {[%clk 0:02:14]}  f5 {[%clk 0:02:48]} 18. h3 {[%clk 0:01:51]}  c5 {[%clk 0:02:37]} 19. Nxc5 {[%clk 0:01:38]}  Nxc5 {[%clk 0:02:38]} 20. dxc5 {[%clk 0:01:39]}  Bxc5 {[%clk 0:02:39]} 21. Be5 {[%clk 0:01:35]}  a5 {[%clk 0:02:33]} 22. Rc3 {[%clk 0:01:21]}  Bd6 {[%clk 0:02:28]} 23. Bxd6 {[%clk 0:01:14]}  Qxd6 {[%clk 0:02:29]} 24. Rfc1 {[%clk 0:01:14]}  Rcb8 {[%clk 0:02:29]} 25. Rc7 {[%clk 0:01:06]}  Qe5 {[%clk 0:02:22]} 26. R1c2 {[%clk 0:00:44]}  Rxb2 {[%clk 0:02:17]} 27. f4 {[%clk 0:00:38]}  Rxb1+ {[%clk 0:02:16]} 28. Kh2 {[%clk 0:00:38]}  Qf6 {[%clk 0:02:14]} 29. R2c5 {[%clk 0:00:27]}  Qa1 {[%clk 0:02:11]} 30. Qd2 {[%clk 0:00:20]}  Rh1+ {[%clk 0:02:09]} 31. Kg3 {[%clk 0:00:20]}  Qe1+ {[%clk 0:02:03]} 32. Qxe1 {[%clk 0:00:20]}  Rxe1 {[%clk 0:02:04]} 33. Re7 {[%clk 0:00:21]}  Bf7 {[%clk 0:01:52]} 34. Rcc7 {[%clk 0:00:21]}  Rf8 {[%clk 0:01:52]} 35. Kf2 {[%clk 0:00:22]}  Ra1 {[%clk 0:01:52]} 36. Rc3 {[%clk 0:00:21]}  Ra2+ {[%clk 0:01:49]} 37. Kf3 {[%clk 0:00:20]}  Kh7 {[%clk 0:01:49]} 38. Ra7 {[%clk 0:00:20]}  Kg6 {[%clk 0:01:47]} 39. Rcc7 {[%clk 0:00:19]}  Kf6 {[%clk 0:01:47]} 40. Rc3 {[%clk 0:00:19]}  g5 {[%clk 0:01:46]} 41. Rxa5 {[%clk 0:00:18]}  gxf4 {[%clk 0:01:45]} 42. exf4 {[%clk 0:00:19]}  Rg8 {[%clk 0:01:46]} 43. Rc7 {[%clk 0:00:17]}  Bh5+ {[%clk 0:01:43]} 44. Ke3 {[%clk 0:00:18]}  Rg3+ {[%clk 0:01:42]} 45. Kd4 {[%clk 0:00:17]}  Rd2+ {[%clk 0:01:43]} 46. Kc5 {[%clk 0:00:17]}  Rc3+ {[%clk 0:01:44]} 47. Kd6 {[%clk 0:00:17]}  Rxc7 {[%clk 0:01:44]} 48. Kxc7 {[%clk 0:00:18]}  Rxg2 {[%clk 0:01:44]} 49. Ra8 {[%clk 0:00:18]}  d4 {[%clk 0:01:44]} 50. Rf8+ {[%clk 0:00:18]}  Ke7 {[%clk 0:01:43]} 51. Rd8 {[%clk 0:00:19]}  Rc2+ {[%clk 0:01:43]} 0-1


[Site "https://www.chess.com"]